{"text_format":"1","workbook":"xlsx","n_sheets":1,"sheets":["Лист1"],"not_rendered":{"charts":0,"images":0,"macros":1,"external_links":0,"defined_names":0,"comments":0,"pivot_tables":0},"unopened":[],"bounds":{"document_bytes":16777216,"sheet_cells":100000,"rows_first":2000,"rows_last":500,"rows_between":2000,"halvings":0,"cell_chars":16384,"cell_head_chars":4096},"cells_cut":0,"cells_raw":0,"read":"whole","date_system":"1900"}

{"sheet":"Лист1","index":0,"n_rows":250,"n_cols":4,"rows_kept":250,"cut":false,"hidden":false,"merged":[]}
["Name,Given Name,Additional Name,Family Name,Yomi Name,Given Name Yomi,Additional Name Yomi,Family Name Yomi,Name Prefix,Name Suffix,Initials,Nickname,Short Name,Maiden Name,Birthday,Gender,Location,Billing Information,Directory Server,Mileage,Occupation,Hobby,Sensitivity,Priority,Subject,Notes,Group Membership,E-mail 1 - Type,E-mail 1 - Value,E-mail 2 - Type,E-mail 2 - Value,Phone 1 - Type,Phone 1 - Value"]
["_,_,,,,,,,,,,,,,,,,,,,,,,,,,,* ,anna.ya1989@mail.ru,,,,",{"$f":"vvv(A2)","v":"anna.ya1989@mail.ru"},{"$f":"webadres(A2)","v":"anna.ya1989@mail.ru"},{"$f":"C2=B2","v":true}]
["Valentin _,Valentin,,_,,,,,,,,,,,,,,,,,,,,,,,,* ,tbcwin@gmail.com,,,,","tbcwin@gmail.com",{"$f":"webadres(A3)","v":"tbcwin@gmail.com"},{"$f":"C3=B3","v":true}]
["____Bêlieve,____Bêlieve,,,,,,,,,,,,,,,,,,,,,,,,,,* ,1526612226@qq.com,,,,","1526612226@qq.com","1526612226@qq.com",true]
["Dina -,Dina,,-,,,,,,,,,,,,,,,,,,,,,,,,* ,dina-best@mail.ru,,,,","dina-best@mail.ru","dina-best@mail.ru",true]
[" --- ---, ---,, ---,,,,,,,,,,,,,,,,,,,,,,,,* ,pizdec_777_@mail.ru,,,,","pizdec_777_@mail.ru","pizdec_777_@mail.ru",true]
["Аська ------,Аська,, ------,,,,,,,,,,,,,,,,,,,,,,,,* ,as-ya2011@mail.ru,,,,","as-ya2011@mail.ru","as-ya2011@mail.ru",true]
[" ----------МиХа ----------, ----------МиХа,, ----------,,,,,,,,,,,,,,,,,,,,,,,,* ,miwytik@rambler.ru,,,,","miwytik@rambler.ru","miwytik@rambler.ru",true]
[",,,,,,,,,,,,,,,,,,,,,,,,,,,* , ---76816546@qq.com,,,,","---76816546@qq.com","76816546@qq.com",false]
["kelbet -kelbet,kelbet,, -kelbet,,,,,,,,,,,,,,,,,,,,,,,,* ,kelbett@mail.ru,,,,","kelbett@mail.ru","kelbett@mail.ru",true]
["GER@IN !,GER@IN,,!,,,,,,,,,,,,,,,,,,,,,,,,* ,9507081223@mail.ru,,,,","9507081223@mail.ru","9507081223@mail.ru",true]
["Натали ???,Натали,,???,,,,,,,,,,,,,,,,,,,,,,,,* ,natali.vvv@bk.ru,,,,","natali.vvv@bk.ru","natali.vvv@bk.ru",true]
["????? ????????,?????,,????????,,,,,,,,,,,,,,,,,,,,,,,,* Other,alenka456@mail.ru,,,Mobile,417696","alenka456@mail.ru","alenka456@mail.ru",true]
["зоя ..,зоя,,..,,,,,,,,,,,,,,,,,,,,,,,,* ,cat5550@rambler.ru,,,,","cat5550@rambler.ru","cat5550@rambler.ru",true]
["???? ...,????,,...,,,,,,,,,,,,,,,,,,,,,,,,* ,aliinwonderland@mail.ru,,,,","aliinwonderland@mail.ru","aliinwonderland@mail.ru",true]
["НаСтЮшКа ...)),НаСтЮшКа,,...)),,,,,,,,,,,,,,,,,,,,,,,,* ,angel_23-15@mail.ru,,,,","angel_23-15@mail.ru","angel_23-15@mail.ru",true]
["иринка ),иринка,,),,,,,,,,,,,,,,,,,,,,,,,,* ,1.9.1986@mail.ru,,,,","1.9.1986@mail.ru","1.9.1986@mail.ru",true]
["Esska @@@,Esska,,@@@,,,,,,,,,,,,,,,,,,,,,,,,* ,esska@rambler.ru,,,,","esska@rambler.ru","esska@rambler.ru",true]
["*M *,*M,,*,,,,,,,,,,,,,,,,,,,,,,,,* ,sweet_veneno@mail.ru,,,,","sweet_veneno@mail.ru","sweet_veneno@mail.ru",true]
["Катерина *,Катерина,,*,,,,,,,,,,,,,,,,,,,,,,,,* ,jersye@mail.ru,,,,","jersye@mail.ru","jersye@mail.ru",true]
["Ольга *,Ольга,,*,,,,,,,,,,,,,,,,,,,,,,,,* ,sadcz@ro.ru,,,,","sadcz@ro.ru","sadcz@ro.ru",true]
["Kim **,Kim,,**,,,,,,,,,,,,,,,,,,,,,,,,* ,kimind357@mail.ru,,,,","kimind357@mail.ru","kimind357@mail.ru",true]
["Виктория ***,Виктория,,***,,,,,,,,,,,,,,,,,,,,,,,,* ,cherry77377@mail.ru,,,,","cherry77377@mail.ru","cherry77377@mail.ru",true]
["Нина *****,Нина,,*****,,,,,,,,,,,,,,,,,,,,,,,,* ,ninelka92@mail.ru,,,,","ninelka92@mail.ru","ninelka92@mail.ru",true]
["*** ***,***,,***,,,,,,,,,,,,,,,,,,,,,,,,* ,og.alena@bk.ru,,,,","og.alena@bk.ru","og.alena@bk.ru",true]
["Zeroen **********,Zeroen,,**********,,,,,,,,,,,,,,,,,,,,,,,,* ,shushuyka@gmail.com,,,,","shushuyka@gmail.com","shushuyka@gmail.com",true]
["Надежда //////////,Надежда,,//////////,,,,,,,,,,,,,,,,,,,,,,,,* ,nadin0606@i.ua,,,,","nadin0606@i.ua","nadin0606@i.ua",true]
["Потихонова |Наталия,Потихонова,,|Наталия,,,,,,,,,,,,,,,,,,,,,,,,* ,nb080474@yandex.ru,,,,","nb080474@yandex.ru","nb080474@yandex.ru",true]
[",,,,,,,,,,,,,,,,,,,,,,,,,,,* ,$of$@osnovad.ru,,,,","","",true]
["￥￥忍￥￥,￥￥忍￥￥,,,,,,,,,,,,,,,,,,,,,,,,,,* ,838945579@qq.com,,,,","838945579@qq.com","838945579@qq.com",true]
["004,004,,,,,,,,,,,,,,,,,,,,,,,,,,* ,004@chinahengjin.com,,,,","004@chinahengjin.com","004@chinahengjin.com",true]
["manager 007,manager,,007,,,,,,,,,,,,,,,,,,,,,,,,* ,manager.yar@mail.ru,,,,","manager.yar@mail.ru","manager.yar@mail.ru",true]
[",,,,,,,,,,,,,,,,,,,,,,,,,,,* ,060479slava@gmail.com,,,,","060479slava@gmail.com","060479slava@gmail.com",true]
[",,,,,,,,,,,,,,,,,,,,,,,,,,,* ,06061xh@sina.com,,,,","06061xh@sina.com","06061xh@sina.com",true]
["08级俄语6班张鹏,08级俄语6班张鹏,,,,,,,,,,,,,,,,,,,,,,,,,,* ,zhangpeng19901208@163.com,,,,","zhangpeng19901208@163.com","zhangpeng19901208@163.com",true]
["1 1,1,,1,,,,,,,,,,,,,,,,,,,,,,,,* ,rj45@mail.ru,,,,","rj45@mail.ru","rj45@mail.ru",true]
["1 1,1,,1,,,,,,,,,,,,,,,,,,,,,,,,* ,tylsk@yandex.ru,,,,","tylsk@yandex.ru","tylsk@yandex.ru",true]
["Катя 1,Катя,,1,,,,,,,,,,,,,,,,,,,,,,,,* ,1katya@mail.ru,,,,","1katya@mail.ru","1katya@mail.ru",true]
["34 12,34,,12,,,,,,,,,,,,,,,,,,,,,,,,* ,gol3e@yandex.ru,,,,","gol3e@yandex.ru","gol3e@yandex.ru",true]
[",,,,,,,,,,,,,,,,,,,,,,,,,,,* ,120153848@qq.com,,,,","120153848@qq.com","120153848@qq.com",true]
["123,123,,,,,,,,,,,,,,,,,,,,,,,,,,* ,wiktorow@bk.ru,,,,","wiktorow@bk.ru","wiktorow@bk.ru",true]
["1363678453@qq.com,1363678453@qq.com,,,,,,,,,,,,,,,,,,,,,,,,,,* ,1363678453@qq.com,,,,","1363678453@qq.com","1363678453@qq.com",true]
[",,,,,,,,,,,,,,,,,,,,,,,,,,,* ,1486867@mail.ru,,,,","1486867@mail.ru","1486867@mail.ru",true]
[",,,,,,,,,,,,,,,,,,,,,,,,,,,* ,182451@mail.ru,,,,","182451@mail.ru","182451@mail.ru",true]
[",,,,,,,,,,,,,,,,,,,,,,,,,,,* ,1rabochaj@mai.ru,,,,","1rabochaj@mai.ru","1rabochaj@mai.ru",true]
["1 2,1,,2,,,,,,,,,,,,,,,,,,,,,,,,* ,s.nord.polus@mail.ru,,,,","s.nord.polus@mail.ru","s.nord.polus@mail.ru",true]
["1 2,1,,2,,,,,,,,,,,,,,,,,,,,,,,,* ,dasauto20@mail.ru,,,,","dasauto20@mail.ru","dasauto20@mail.ru",true]
["250521515@qq.com,250521515@qq.com,,,,,,,,,,,,,,,,,,,,,,,,,,* ,250521515@qq.com,,,,","250521515@qq.com","250521515@qq.com",true]
["315887165@qq.com,315887165@qq.com,,,,,,,,,,,,,,,,,,,,,,,,,,* ,315887165@qq.com,,,,","315887165@qq.com","315887165@qq.com",true]
[",,,,,,,,,,,,,,,,,,,,,,,,,,,* ,346106@rambler.ru,,,,","346106@rambler.ru","346106@rambler.ru",true]
["Руслан 4363,Руслан,,4363,,,,,,,,,,,,,,,,,,,,,,,,* ,rus-vrn@mail.ru,,,,","rus-vrn@mail.ru","rus-vrn@mail.ru",true]
[",,,,,,,,,,,,,,,,,,,,,,,,,,,* ,5266666@mail.ru,,,,","5266666@mail.ru","5266666@mail.ru",true]
[",,,,,,,,,,,,,,,,,,,,,,,,,,,* ,615193@ngs.ru,,,,","615193@ngs.ru","615193@ngs.ru",true]
[",,,,,,,,,,,,,,,,,,,,,,,,,,,* ,629lvzhiqiang@sina.com,,,,","629lvzhiqiang@sina.com","629lvzhiqiang@sina.com",true]
["007 7,007,,7,,,,,,,,,,,,,,,,,,,,,,,,* ,sever.offis@gmail.com,,,,","sever.offis@gmail.com","sever.offis@gmail.com",true]
[",,,,,,,,,,,,,,,,,,,,,,,,,,,* ,76816546@qq.com,,,,","76816546@qq.com","76816546@qq.com",true]
[",,,,,,,,,,,,,,,,,,,,,,,,,,,* ,794079@mail.ru,,,,","794079@mail.ru","794079@mail.ru",true]
[",,,,,,,,,,,,,,,,,,,,,,,,,,,* ,89031994285@bk.ru,,,,","89031994285@bk.ru","89031994285@bk.ru",true]
[",,,,,,,,,,,,,,,,,,,,,,,,,,,* ,89150604351@yandex.ru,,,,","89150604351@yandex.ru","89150604351@yandex.ru",true]
[",,,,,,,,,,,,,,,,,,,,,,,,,,,* ,9386817@gmail.ru,,,,","9386817@gmail.ru","9386817@gmail.ru",true]
[",,,,,,,,,,,,,,,,,,,,,,,,,,,* ,9863655@bk.ru,,,,","9863655@bk.ru","9863655@bk.ru",true]
["К А,К,,А,,,,,,,,,,,,,,,,,,,,,,,,* ,ak1602@yandex.ru,,,,","ak1602@yandex.ru","ak1602@yandex.ru",true]
["Гиллер А.Э.,Гиллер,,А.Э.,,,,,,,,,,,,,,,,,,,,,,,,* ,giller@mtpp74.ru,,,,","giller@mtpp74.ru","giller@mtpp74.ru",true]
["Наталия Абалмасова,Наталия,,Абалмасова,,,,,,,,,,,,,,,,,,,,,,,,* ,natalirusa@mail.ru,,,,","natalirusa@mail.ru","natalirusa@mail.ru",true]
["лиля абдульманова,лиля,,абдульманова,,,,,,,,,,,,,,,,,,,,,,,,* ,lilechkaflower@mail.ru,,,,","lilechkaflower@mail.ru","lilechkaflower@mail.ru",true]
["Роман Абрамов,Роман,,Абрамов,,,,,,,,,,,,,,,,,,,,,,,,* ,roma_abramov@mail.ru,,,,",{"$f":"vvv(A66)","v":"roma_abramov@mail.ru"},"roma_abramov@mail.ru",true]
["Ильдар Абсалямов,Ильдар,,Абсалямов,,,,,,,,,,,,,,,,,,,,,,,,* ,nicknaper@gmail.com,,,,","nicknaper@gmail.com",{"$f":"webadres(A67)","v":"nicknaper@gmail.com"},{"$f":"C67=B67","v":true}]
["Настя Аввакумова,Настя,,Аввакумова,,,,,,,,,,,,,,,,,,,,,,,,* ,Balamutko@rambler.ru,,,,","Balamutko@rambler.ru","Balamutko@rambler.ru",true]
["Вероника Аверина,Вероника,,Аверина,,,,,,,,,,,,,,,,,,,,,,,,* ,bruksanika@gmail.com,,,,","bruksanika@gmail.com","bruksanika@gmail.com",true]
["Елена Агаева,Елена,,Агаева,,,,,,,,,,,,,,,,,,,,,,,,* ,1350pisem@mail.ru,,,,","1350pisem@mail.ru","1350pisem@mail.ru",true]
["Ирина Агаркова,Ирина,,Агаркова,,,,,,,,,,,,,,,,,,,,,,,,* ,irina4400@gmail.com,,,,","irina4400@gmail.com","irina4400@gmail.com",true]
["Артём Адагамов,Артём,,Адагамов,,,,,,,,,,,,,,,,,,,,,,,,* ,becks13@mail.ru,,,,","becks13@mail.ru","becks13@mail.ru",true]
["Андрей Админ,Андрей,,Админ,,,,,,,,,,,,,,,,,,,,,,,* My Contacts,,,,,,","","",true]
["Катя Администратор,Катя,,Администратор,,,,,,,,,,,,,,,,,,,,,,,* My Contacts,,,,,Mobile,+79833394274","","",true]
["Инесса Айвазян,Инесса,,Айвазян,,,,,,,,,,,,,,,,,,,,,,,,* ,inessabaron@mail.ru,,,,","inessabaron@mail.ru","inessabaron@mail.ru",true]
["Мария Акимова,Мария,,Акимова,,,,,,,,,,,,,,,,,,,,,,,,* ,akimova_marie@mail.ru,,,,","akimova_marie@mail.ru","akimova_marie@mail.ru",true]
["Айиша Акмалдинова,Айиша,,Акмалдинова,,,,,,,,,,,,,,,,,,,,,,,,* ,ajisha0707@gmail.com,,,,","ajisha0707@gmail.com","ajisha0707@gmail.com",true]
["Ирина Аксенова,Ирина,,Аксенова,,,,,,,,,,,,,,,,,,,,,,,,* ,irisha-gsc@rambler.ru,,,,","irisha-gsc@rambler.ru","irisha-gsc@rambler.ru",true]
["Акудеева,Акудеева,,,,,,,,,,,,,,,,,,,,,,,,,,* ,frosyaakudeeva@yandex.ru,,,,","frosyaakudeeva@yandex.ru","frosyaakudeeva@yandex.ru",true]
["Маил Алекперов,Маил,,Алекперов,,,,,,,,,,,,,,,,,,,,,,,,* ,alekperof@mail.ru,,,,","alekperof@mail.ru","alekperof@mail.ru",true]
["Эльшан Алекперов,Эльшан,,Алекперов,,,,,,,,,,,,,,,,,,,,,,,,* ,aelshan77@hotmail.com,,,,","aelshan77@hotmail.com","aelshan77@hotmail.com",true]
["Алекс Алекса,Алекс,,Алекса,,,,,,,,,,,,,,,,,,,,,,,,* ,aleksa1409@yandex.ru,,,,","aleksa1409@yandex.ru","aleksa1409@yandex.ru",true]
["Александр,Александр,,,,,,,,,,,,,,,,,,,,,,,,,,* ,drag_71@bk.ru,,,,","drag_71@bk.ru","drag_71@bk.ru",true]
["Александр,Александр,,,,,,,,,,,,,,,,,,,,,,,,,,* ,i-x-x-x-i@mail.ru,,,,","x-i@mail.ru","i-x-x-x-i@mail.ru",false]
["Александр,Александр,,,,,,,,,,,,,,,,,,,,,,,,,,* ,chester82@yandex.ru,,,,","chester82@yandex.ru","chester82@yandex.ru",true]
["Беляев Александр,Беляев,,Александр,,,,,,,,,,,,,,,,,,,,,,,,* ,mamashai@mail.ru,,,,","mamashai@mail.ru","mamashai@mail.ru",true]
["Бронштейн Александр,Бронштейн,,Александр,,,,,,,,,,,,,,,,,,,,,,,,* ,3456739@mail.ru,,,,","3456739@mail.ru","3456739@mail.ru",true]
["машков александр,машков,,александр,,,,,,,,,,,,,,,,,,,,,,,,* ,termal1402@mail.ru,,,,","termal1402@mail.ru","termal1402@mail.ru",true]
["серебряков александр,серебряков,,александр,,,,,,,,,,,,,,,,,,,,,,,,* ,pushkin2011.s@yandex.ru,,,,","pushkin2011.s@yandex.ru","pushkin2011.s@yandex.ru",true]
["Александра,Александра,,,,,,,,,,,,,,,,,,,,,,,,,,* ,aleksa.83@mail.ru,,,,","aleksa.83@mail.ru","aleksa.83@mail.ru",true]
["Александра,Александра,,,,,,,,,,,,,,,,,,,,,,,,,,* ,11-yes@rambler.ru,,,,","11-yes@rambler.ru","11-yes@rambler.ru",true]
["Александра,Александра,,,,,,,,,,,,,,,,,,,,,,,,,,* ,amoniha@mail.ru,,,,","amoniha@mail.ru","amoniha@mail.ru",true]
["Шадрина Александра,Шадрина,,Александра,,,,,,,,,,,,,,,,,,,,,,,,* ,aleshadrina@yandex.ru,,,,","aleshadrina@yandex.ru","aleshadrina@yandex.ru",true]
["Александ Александрович,Александ,,Александрович,,,,,,,,,,,,,,,,,,,,,,,,* ,aleksandr_shlyk@mail.ru,,,,","aleksandr_shlyk@mail.ru","aleksandr_shlyk@mail.ru",true]
["Алеся Александровна,Алеся,,Александровна,,,,,,,,,,,,,,,,,,,,,,,,* ,antonandalesi1996@gmail.com,,,,","antonandalesi1996@gmail.com","antonandalesi1996@gmail.com",true]
["Виктория Александровна,Виктория,,Александровна,,,,,,,,,,,,,,,,,,,,,,,,* ,viktoshka_sa@mail.ru,,,,","viktoshka_sa@mail.ru","viktoshka_sa@mail.ru",true]
["Ефремова Евгения Александровна,Ефремова,Евгения,Александровна,,,,,,,,,,,,,,,,,,,,,,,,* ,efremovaea@kru.ru,,,,","efremovaea@kru.ru","efremovaea@kru.ru",true]
["Иванова Полина Александровна,Иванова,Полина,Александровна,,,,,,,,,,,,,,,,,,,,,,,,* ,Ivanova.PA@azs.gazprom-neft.ru,,,,","Ivanova.PA@azs.gazprom","Ivanova.PA@azs.gazprom",true]
["Рыжкова Глафира Александровна,Рыжкова,Глафира,Александровна,,,,,,,,,,,,,,,,,,,,,,,,* ,glenok87@mail.ru,,,,","glenok87@mail.ru","glenok87@mail.ru",true]
["Алексей Алексеев,Алексей,,Алексеев,,,,,,,,,,,,,,,,,,,,,,,,* ,anuzhnjy@gmail.com,,,,","anuzhnjy@gmail.com","anuzhnjy@gmail.com",true]
["Анастасия Алексеева,Анастасия,,Алексеева,,,,,,,,,,,,,,,,,,,,,,,,* ,stasya555@mail.ru,,,,","stasya555@mail.ru","stasya555@mail.ru",true]
["Кристина Алексеева,Кристина,,Алексеева,,,,,,,,,,,,,,,,,,,,,,,,* ,kri90@mail.ru,,,,","kri90@mail.ru","kri90@mail.ru",true]
["Фёдорова Ольга Алексеевна,Фёдорова,Ольга,Алексеевна,,,,,,,,,,,,,,,,,,,,,,,,* ,Olga-shabanova2007@yandex.ru,,,,","Olga-shabanova2007@yandex.ru","Olga-shabanova2007@yandex.ru",true]
["Владимир Алексеенко,Владимир,,Алексеенко,,,,,,,,,,,,,,,,,,,,,,,,* ,vladimir19964@mail.ru,,,,","vladimir19964@mail.ru","vladimir19964@mail.ru",true]
["Игорь Алексеенко,Игорь,,Алексеенко,,,,,,,,,,,,,,,,,,,,,,,,* ,alex90flave@mail.ru,,,,","alex90flave@mail.ru","alex90flave@mail.ru",true]
["Алексей,Алексей,,,,,,,,,,,,,,,,,,,,,,,,,,* ,lomik-fomka@yandex.ru,,,,","lomik-fomka@yandex.ru","lomik-fomka@yandex.ru",true]
["Алексей,Алексей,,,,,,,,,,,,,,,,,,,,,,,,,,* ,kozlovaleksey@list.ru,,,,","kozlovaleksey@list.ru","kozlovaleksey@list.ru",true]
["Алексей,Алексей,,,,,,,,,,,,,,,,,,,,,,,,,,* ,1993-skorpion@mail.ru,,,,","1993-skorpion@mail.ru","1993-skorpion@mail.ru",true]
["Алексей,Алексей,,,,,,,,,,,,,,,,,,,,,,,,,* My Contacts,,,,,Mobile,+79244584025","","",true]
["Алексей,Алексей,,,,,,,,,,,,,,,,,,,,,,,,,,* ,kraev-aleksey@yandex.ru,,,,","kraev-aleksey@yandex.ru","kraev-aleksey@yandex.ru",true]
["Алексей,Алексей,,,,,,,,,,,,,,,,,,,,,,,,,,* ,alex_@ngs.ru,,,,","alex_@ngs.ru","alex_@ngs.ru",true]
["Артюх Алексей,Артюх,,Алексей,,,,,,,,,,,,,,,,,,,,,,,,* ,artukh@inbox.ru,,,,","artukh@inbox.ru","artukh@inbox.ru",true]
["Демин Алексей,Демин,,Алексей,,,,,,,,,,,,,,,,,,,,,,,,* ,alex-d976@yandex.ru,,,,","alex-d976@yandex.ru","alex-d976@yandex.ru",true]
["** Алёна,**,,Алёна,,,,,,,,,,,,,,,,,,,,,,,,* ,AlyNA212@yandex.ru,,,,","AlyNA212@yandex.ru","AlyNA212@yandex.ru",true]
["Малыгина Алена,Малыгина,,Алена,,,,,,,,,,,,,,,,,,,,,,,,* ,alenushka-1687@mail.ru,,,,","alenushka-1687@mail.ru","alenushka-1687@mail.ru",true]
["Алёнка,Алёнка,,,,,,,,,,,,,,,,,,,,,,,,,,* ,djavola@list.ru,,,,","djavola@list.ru","djavola@list.ru",true]
["Алёнка,Алёнка,,,,,,,,,,,,,,,,,,,,,,,,,,* ,inalenka@mail.ru,,,,","inalenka@mail.ru","inalenka@mail.ru",true]
["Ульяна Алёшина,Ульяна,,Алёшина,,,,,,,,,,,,,,,,,,,,,,,,* ,uljana_19@mail.ru,,,,","uljana_19@mail.ru","uljana_19@mail.ru",true]
["Виктория Алешкова,Виктория,,Алешкова,,,,,,,,,,,,,,,,,,,,,,,,* ,valeshkova@gmail.com,,,,","valeshkova@gmail.com","valeshkova@gmail.com",true]
["Алик,Алик,,,,,,,,,,,,,,,,,,,,,,,,,,* ,af.td-kama@mail.ru,,,,","af.td-kama@mail.ru","af.td-kama@mail.ru",true]
["Литвин Алина,Литвин,,Алина,,,,,,,,,,,,,,,,,,,,,,,,* ,rma21@yandex.ua,,,,","rma21@yandex.ua","rma21@yandex.ua",true]
["Николаева Алина,Николаева,,Алина,,,,,,,,,,,,,,,,,,,,,,,,* ,alino4kanik@yandex.ru,,,,","alino4kanik@yandex.ru","alino4kanik@yandex.ru",true]
["Филатова Алина,Филатова,,Алина,,,,,,,,,,,,,,,,,,,,,,,,* ,luskan@yandex.ru,,,,","luskan@yandex.ru","luskan@yandex.ru",true]
["Асанова Алия,Асанова,,Алия,,,,,,,,,,,,,,,,,,,,,,,,* ,a-aliya@yandex.ru,,,,","a-aliya@yandex.ru","a-aliya@yandex.ru",true]
["Никитина Алла,Никитина,,Алла,,,,,,,,,,,,,,,,,,,,,,,,* ,nikitina_88@mail.ru,,,,","nikitina_88@mail.ru","nikitina_88@mail.ru",true]
["евгения алсыева,евгения,,алсыева,,,,,,,,,,,,,,,,,,,,,,,,* ,bayarma040897@mail.ru,,,,","bayarma040897@mail.ru","bayarma040897@mail.ru",true]
["Светлана Алтухова,Светлана,,Алтухова,,,,,,,,,,,,,,,,,,,,,,,,* ,houseparadise@mail.ru,,,,","houseparadise@mail.ru","houseparadise@mail.ru",true]
["Курбакова Лилия Альбертовна,Курбакова,Лилия,Альбертовна,,,,,,,,,,,,,,,,,,,,,,,,* ,kurbakova@giel.ru,,,,","kurbakova@giel.ru","kurbakova@giel.ru",true]
["Курбакова Лилия Альбертовна,Курбакова,Лилия,Альбертовна,,,,,,,,,,,,,,,,,,,,,,,,* ,kurbakoval@giel.ru,,,,","kurbakoval@giel.ru","kurbakoval@giel.ru",true]
["Альбина,Альбина,,,,,,,,,,,,,,,,,,,,,,,,,,* ,albi@nm.ru,,,,",{"$f":"vvv(A130)","v":"albi@nm.ru"},"albi@nm.ru",true]
["Сафаргалины Лиля и Альфир,Сафаргалины,Лиля и,Альфир,,,,,,,,,,,,,,,,,,,,,,,,* ,lulu-alfir@yandex.ru,,,,","lulu-alfir@yandex.ru",{"$f":"webadres(A131)","v":"lulu-alfir@yandex.ru"},{"$f":"C131=B131","v":true}]
["Маргарита Алябьева,Маргарита,,Алябьева,,,,,,,,,,,,,,,,,,,,,,,,* ,alyabjeva_m@rambler.ru,,,,","alyabjeva_m@rambler.ru","alyabjeva_m@rambler.ru",true]
["АМК-Сервис,АМК-Сервис,,,,,,,,,,,,,,,,,,,,,,,,,,* ,79045015833@yandex.ru,,,,","79045015833@yandex.ru","79045015833@yandex.ru",true]
["владислава амурова,владислава,,амурова,,,,,,,,,,,,,,,,,,,,,,,,* ,vlada.lik07@mail.ru,,,,","vlada.lik07@mail.ru","vlada.lik07@mail.ru",true]
["ольга амурова,ольга,,амурова,,,,,,,,,,,,,,,,,,,,,,,,* ,amurova80@mail.ru,,,,","amurova80@mail.ru","amurova80@mail.ru",true]
["Кирилл Ананьев,Кирилл,,Ананьев,,,,,,,,,,,,,,,,,,,,,,,,* ,kirillrepair@gmail.com,,,,","kirillrepair@gmail.com","kirillrepair@gmail.com",true]
["Антонова Анастасия,Антонова,,Анастасия,,,,,,,,,,,,,,,,,,,,,,,,* ,Nastyscha1989@yandex.ru,,,,","Nastyscha1989@yandex.ru","Nastyscha1989@yandex.ru",true]
["Асетрова Анастасия,Асетрова,,Анастасия,,,,,,,,,,,,,,,,,,,,,,,,* ,Stasay888@yandex.ru,,,,","Stasay888@yandex.ru","Stasay888@yandex.ru",true]
["Валуева Анастасия,Валуева,,Анастасия,,,,,,,,,,,,,,,,,,,,,,,,* ,stasia791@yandex.ru,,,,","stasia791@yandex.ru","stasia791@yandex.ru",true]
["Воронцова Анастасия,Воронцова,,Анастасия,,,,,,,,,,,,,,,,,,,,,,,,* ,vorontsovaao@ya.ru,,,,","vorontsovaao@ya.ru","vorontsovaao@ya.ru",true]
["Воронцова Анастасия,Воронцова,,Анастасия,,,,,,,,,,,,,,,,,,,,,,,,* ,vorontsovaAO@yandex.ru,,,,","vorontsovaAO@yandex.ru","vorontsovaAO@yandex.ru",true]
["Гришанова Анастасия,Гришанова,,Анастасия,,,,,,,,,,,,,,,,,,,,,,,,* ,gaa098@yandex.ru,,,,","gaa098@yandex.ru","gaa098@yandex.ru",true]
["хафизова анастасия,хафизова,,анастасия,,,,,,,,,,,,,,,,,,,,,,,,* ,xafo4ka1@yandex.ru,,,,","xafo4ka1@yandex.ru","xafo4ka1@yandex.ru",true]
["Юлия и Анастасия,Юлия,и,Анастасия,,,,,,,,,,,,,,,,,,,,,,,,* ,yustina_liza@mail.ru,,,,","yustina_liza@mail.ru","yustina_liza@mail.ru",true]
["АнастасияЕщеркина,АнастасияЕщеркина,,,,,,,,,,,,,,,,,,,,,,,,,,* ,an.esherik@mail.ru,,,,","an.esherik@mail.ru","an.esherik@mail.ru",true]
["АнастасияЧукрина,АнастасияЧукрина,,,,,,,,,,,,,,,,,,,,,,,,,,* ,3939392011@mail.ru,,,,","3939392011@mail.ru","3939392011@mail.ru",true]
["Анатолий,Анатолий,,,,,,,,,,,,,,,,,,,,,,,,,,* ,qraga3@gmail.com,,,,","qraga3@gmail.com","qraga3@gmail.com",true]
["Денис Анатольевич,Денис,,Анатольевич,,,,,,,,,,,,,,,,,,,,,,,,* ,D.e.n.is@yandex.ru,,,,","D.e.n.is@yandex.ru","D.e.n.is@yandex.ru",true]
["Роза Анатольевна,Роза,,Анатольевна,,,,,,,,,,,,,,,,,,,,,,,* My Contacts,,,,,Mobile,+79148447172","","",true]
["Ангелина,Ангелина,,,,,,,,,,,,,,,,,,,,,,,,,,* ,angelina999@mail.ru,,,,","angelina999@mail.ru","angelina999@mail.ru",true]
["ина Ангелина,ина,,Ангелина,,,,,,,,,,,,,,,,,,,,,,,,* ,angelina828@mail.ru,,,,","angelina828@mail.ru","angelina828@mail.ru",true]
["Анна Андикаева,Анна,,Андикаева,,,,,,,,,,,,,,,,,,,,,,,,* ,ms.andikaeva@mail.ru,,,,","ms.andikaeva@mail.ru","ms.andikaeva@mail.ru",true]
["Андреев,Андреев,,,,,,,,,,,,,,,,,,,,,,,,,,* ,andreev_86@mail.ru,,,,","andreev_86@mail.ru","andreev_86@mail.ru",true]
["таня андреева,таня,,андреева,,,,,,,,,,,,,,,,,,,,,,,,* ,andreeva.tanya@inbox.ru,,,,","andreeva.tanya@inbox.ru","andreeva.tanya@inbox.ru",true]
["Юлия Андреева,Юлия,,Андреева,,,,,,,,,,,,,,,,,,,,,,,,* ,milarai765@mail.ru,,,,","milarai765@mail.ru","milarai765@mail.ru",true]
["Анна Андреевна,Анна,,Андреевна,,,,,,,,,,,,,,,,,,,,,,,,* ,xana2003@mail.ru,,,,","xana2003@mail.ru","xana2003@mail.ru",true]
["Андрей,Андрей,,,,,,,,,,,,,,,,,,,,,,,,,,* ,kozatchok@ukr.net,,,,","kozatchok@ukr.net","kozatchok@ukr.net",true]
["Андрей,Андрей,,,,,,,,,,,,,,,,,,,,,,,,,,* ,endi4@yandex.ru,,,,","endi4@yandex.ru","endi4@yandex.ru",true]
["Андрей,Андрей,,,,,,,,,,,,,,,,,,,,,,,,,,* ,straider087@rambler.ru,,,,","straider087@rambler.ru","straider087@rambler.ru",true]
["Андрей,Андрей,,,,,,,,,,,,,,,,,,,,,,,,,,* ,andr1177@rambler.ru,,,,","andr1177@rambler.ru","andr1177@rambler.ru",true]
["клюев андрей,клюев,,андрей,,,,,,,,,,,,,,,,,,,,,,,,* ,kluevap@yandex.ru,,,,","kluevap@yandex.ru","kluevap@yandex.ru",true]
["о Андрей,о,,Андрей,,,,,,,,,,,,,,,,,,,,,,,,* ,Kondrat999@yandex.ru,,,,","Kondrat999@yandex.ru","Kondrat999@yandex.ru",true]
["шевцов андрей,шевцов,,андрей,,,,,,,,,,,,,,,,,,,,,,,,* ,shevtsov8@yandex.ru,,,,","shevtsov8@yandex.ru","shevtsov8@yandex.ru",true]
["Нелли Андрианова,Нелли,,Андрианова,,,,,,,,,,,,,,,,,,,,,,,,* ,gt_9586@mail.ru,,,,","gt_9586@mail.ru","gt_9586@mail.ru",true]
["мария андрощук,мария,,андрощук,,,,,,,,,,,,,,,,,,,,,,,,* ,marya-androshuk@yandex.ru,,,,","marya-androshuk@yandex.ru","marya-androshuk@yandex.ru",true]
["Четаева Анжелика,Четаева,,Анжелика,,,,,,,,,,,,,,,,,,,,,,,,* ,anzhi79@yandex.ru,,,,","anzhi79@yandex.ru","anzhi79@yandex.ru",true]
["марина анирам,марина,,анирам,,,,,,,,,,,,,,,,,,,,,,,,* ,taoshop2@gmail.com,,,,","taoshop2@gmail.com","taoshop2@gmail.com",true]
["Анкета,Анкета,,,,,,,,,,,,,,,,,,,,,,,,,,* ,fanil99@mail.ru,,,,","fanil99@mail.ru","fanil99@mail.ru",true]
["Анна,Анна,,,,,,,,,,,,,,,,,,,,,,,,,,* ,j_ann@list.ru,,,,","j_ann@list.ru","j_ann@list.ru",true]
["Анна,Анна,,,,,,,,,,,,,,,,,,,,,,,,,,* ,brisvann@rambler.ru,,,,","brisvann@rambler.ru","brisvann@rambler.ru",true]
["Анна,Анна,,,,,,,,,,,,,,,,,,,,,,,,,,* ,anigla@yandex.ru,,,,","anigla@yandex.ru","anigla@yandex.ru",true]
["Анна,Анна,,,,,,,,,,,,,,,,,,,,,,,,,,* ,miroshkina.anna@mail.ru,,,,","miroshkina.anna@mail.ru","miroshkina.anna@mail.ru",true]
["добринская анна,добринская,,анна,,,,,,,,,,,,,,,,,,,,,,,,* ,anna-dobrinskaya@yandex.ru,,,,","anna-dobrinskaya@yandex.ru","anna-dobrinskaya@yandex.ru",true]
["Маслова Анна,Маслова,,Анна,,,,,,,,,,,,,,,,,,,,,,,,* ,capriciousgirl4@yandex.ru,,,,","capriciousgirl4@yandex.ru","capriciousgirl4@yandex.ru",true]
["Орешкова Анна,Орешкова,,Анна,,,,,,,,,,,,,,,,,,,,,,,,* ,annabakan@yandex.ru,,,,","annabakan@yandex.ru","annabakan@yandex.ru",true]
["Орлова Анна,Орлова,,Анна,,,,,,,,,,,,,,,,,,,,,,,,* ,anuta63@yandex.ru,,,,","anuta63@yandex.ru","anuta63@yandex.ru",true]
["Силкина Анна,Силкина,,Анна,,,,,,,,,,,,,,,,,,,,,,,,* ,annsilkina@yandex.ru,,,,","annsilkina@yandex.ru","annsilkina@yandex.ru",true]
["Фефилова Анна,Фефилова,,Анна,,,,,,,,,,,,,,,,,,,,,,,,* ,mngera@yandex.ru,,,,","mngera@yandex.ru","mngera@yandex.ru",true]
["Аннета,Аннета,,,,,,,,,,,,,,,,,,,,,,,,,* My Contacts,,,,,Mobile,+79148406120","","",true]
["Петрухин Антон,Петрухин,,Антон,,,,,,,,,,,,,,,,,,,,,,,,* ,petrucho057@yandex.ru,,,,","petrucho057@yandex.ru","petrucho057@yandex.ru",true]
["Сергей Антонов,Сергей,,Антонов,,,,,,,,,,,,,,,,,,,,,,,,* ,sergrew@mail.ru,,,,","sergrew@mail.ru","sergrew@mail.ru",true]
["Настя Антонова,Настя,,Антонова,,,,,,,,,,,,,,,,,,,,,,,,* ,favoreet@mail.ru,,,,","favoreet@mail.ru","favoreet@mail.ru",true]
["Наталья Антонова,Наталья,,Антонова,,,,,,,,,,,,,,,,,,,,,,,,* ,9159355_sochi@mail.ru,,,,","9159355_sochi@mail.ru","9159355_sochi@mail.ru",true]
["Наталья Антонова,Наталья,,Антонова,,,,,,,,,,,,,,,,,,,,,,,,* ,natali5558015@mail.ru,,,,","natali5558015@mail.ru","natali5558015@mail.ru",true]
["Ануш,Ануш,,,,,,,,,,,,,,,,,,,,,,,,,,* ,anushka.simonyan@gmail.com,,,,","anushka.simonyan@gmail.com","anushka.simonyan@gmail.com",true]
["Симонян Ануш,Симонян,,Ануш,,,,,,,,,,,,,,,,,,,,,,,,* ,anushka_gan@mail.ru,,,,","anushka_gan@mail.ru","anushka_gan@mail.ru",true]
["Саша Анчин,Саша,,Анчин,,,,,,,,,,,,,,,,,,,,,,,,* ,sashaxxx3@mail.ru,,,,","sashaxxx3@mail.ru","sashaxxx3@mail.ru",true]
["Аня,Аня,,,,,,,,,,,,,,,,,,,,,,,,,,* ,ani_k@ngs.ru,,,,","ani_k@ngs.ru","ani_k@ngs.ru",true]
["Аня,Аня,,,,,,,,,,,,,,,,,,,,,,,,,,* ,ivanoff_78@mail.ru,,,,","ivanoff_78@mail.ru","ivanoff_78@mail.ru",true]
["аня аня,аня,,аня,,,,,,,,,,,,,,,,,,,,,,,,* ,ang21_88@mail.ru,,,,","ang21_88@mail.ru","ang21_88@mail.ru",true]
["ароаоа арара,ароаоа,,арара,,,,,,,,,,,,,,,,,,,,,,,,* ,dddpev@yandex.ru,,,,","dddpev@yandex.ru","dddpev@yandex.ru",true]
["Виктор Арбатский,Виктор,,Арбатский,,,,,,,,,,,,,,,,,,,,,,,,* ,arbavirt@yandex.ru,,,,","arbavirt@yandex.ru","arbavirt@yandex.ru",true]
["Арсалан,Арсалан,,,,,,,,,,,,,,,,,,,,,,,,,* My Contacts,,,,,,","","",true]
["Артем,Артем,,,,,,,,,,,,,,,,,,,,,,,,,,* ,artem_rus@bk.ru,,,,",{"$f":"vvv(A194)","v":"artem_rus@bk.ru"},"artem_rus@bk.ru",true]
["артем артем,артем,,артем,,,,,,,,,,,,,,,,,,,,,,,,* ,artemamama2006@mail.ru,,,,","artemamama2006@mail.ru",{"$f":"webadres(A195)","v":"artemamama2006@mail.ru"},{"$f":"C195=B195","v":true}]
["Петраков Артем,Петраков,,Артем,,,,,,,,,,,,,,,,,,,,,,,,* ,Crocodilko@yandex.ru,,,,","Crocodilko@yandex.ru","Crocodilko@yandex.ru",true]
["Рухлов Артем,Рухлов,,Артем,,,,,,,,,,,,,,,,,,,,,,,,* ,557792@mail.ru,,,,","557792@mail.ru","557792@mail.ru",true]
["Анна Артемова,Анна,,Артемова,,,,,,,,,,,,,,,,,,,,,,,,* ,magisa@list.ru,,,,","magisa@list.ru","magisa@list.ru",true]
["Абдюков Артур,Абдюков,,Артур,,,,,,,,,,,,,,,,,,,,,,,,* ,artur100578@yandex.ru,,,,","artur100578@yandex.ru","artur100578@yandex.ru",true]
["Дина Артюх,Дина,,Артюх,,,,,,,,,,,,,,,,,,,,,,,,* ,xyz13@list.ru,,,,","xyz13@list.ru","xyz13@list.ru",true]
["Юлия Архипова,Юлия,,Архипова,,,,,,,,,,,,,,,,,,,,,,,,* ,krylova_y@mail.ru,,,,","krylova_y@mail.ru","krylova_y@mail.ru",true]
["Ирина Астапчик,Ирина,,Астапчик,,,,,,,,,,,,,,,,,,,,,,,,* ,astapchikirishka@mail.ru,,,,","astapchikirishka@mail.ru","astapchikirishka@mail.ru",true]
["Зарина Асхабова,Зарина,,Асхабова,,,,,,,,,,,,,,,,,,,,,,,,* ,zarina_ashabova@mail.ru,,,,","zarina_ashabova@mail.ru","zarina_ashabova@mail.ru",true]
["наталья атаева,наталья,,атаева,,,,,,,,,,,,,,,,,,,,,,,,* ,ataeva07@mail.ru,,,,","ataeva07@mail.ru","ataeva07@mail.ru",true]
["Александра Афанасьева,Александра,,Афанасьева,,,,,,,,,,,,,,,,,,,,,,,,* ,afanasyeva_aa@mail.ru,,,,","afanasyeva_aa@mail.ru","afanasyeva_aa@mail.ru",true]
["Алексей Афонин,Алексей,,Афонин,,,,,,,,,,,,,,,,,,,,,,,,* ,samaraafonin@gmail.com,,,,","samaraafonin@gmail.com","samaraafonin@gmail.com",true]
["Алена Афонина,Алена,,Афонина,,,,,,,,,,,,,,,,,,,,,,,,* ,aphonina.alena@gmail.com,,,,","aphonina.alena@gmail.com","aphonina.alena@gmail.com",true]
["вазипа ахмедова,вазипа,,ахмедова,,,,,,,,,,,,,,,,,,,,,,,,* ,vazipa77777@mail.ru,,,,","vazipa77777@mail.ru","vazipa77777@mail.ru",true]
["Марат Ахмеров,Марат,,Ахмеров,,,,,,,,,,,,,,,,,,,,,,,,* ,obyfka@mail.ru,,,,","obyfka@mail.ru","obyfka@mail.ru",true]
["Юля Ахмерова,Юля,,Ахмерова,,,,,,,,,,,,,,,,,,,,,,,,* ,lelika55@mail.ru,,,,","lelika55@mail.ru","lelika55@mail.ru",true]
["Аюша,Аюша,,,,,,,,,,,,,,,,,,,,,,,,,* My Contacts,,,,,Mobile,+79025641724","","",true]
["Дмитрий Аюшеев,Дмитрий,,Аюшеев,,,,,,,,,,,,,,,,,,,,,,,,* ,dm_vt@mail.ru,,,,","dm_vt@mail.ru","dm_vt@mail.ru",true]
["надежда аюшеева,надежда,,аюшеева,,,,,,,,,,,,,,,,,,,,,,,,* ,ochirdos2012@gmail.com,,,,","ochirdos2012@gmail.com","ochirdos2012@gmail.com",true]
["Туристкая фирма АЯ-ГАНГА,Туристкая,фирма,АЯ-ГАНГА,,,,,,,,,,,,,,,,,,,,,,,,* ,aia-ganga@yandex.ru,,,,","aia-ganga@yandex.ru","aia-ganga@yandex.ru",true]
["А Б,А,,Б,,,,,,,,,,,,,,,,,,,,,,,,* ,silver211@yandex.ru,,,,","silver211@yandex.ru","silver211@yandex.ru",true]
["Оксана Б,Оксана,,Б,,,,,,,,,,,,,,,,,,,,,,,,* ,oksi751@mail.ru,,,,","oksi751@mail.ru","oksi751@mail.ru",true]
["Жанна Бабаева,Жанна,,Бабаева,,,,,,,,,,,,,,,,,,,,,,,,* ,jane.v.b@mail.ru,,,,","jane.v.b@mail.ru","jane.v.b@mail.ru",true]
["Екатерина Бабина,Екатерина,,Бабина,,,,,,,,,,,,,,,,,,,,,,,,* ,kate_babina@mail.ru,,,,","kate_babina@mail.ru","kate_babina@mail.ru",true]
["Оксана Бабич,Оксана,,Бабич,,,,,,,,,,,,,,,,,,,,,,,,* ,meggis@mail.ru,,,,","meggis@mail.ru","meggis@mail.ru",true]
["Алина Бабурина,Алина,,Бабурина,,,,,,,,,,,,,,,,,,,,,,,,* ,777primo777@gmail.com,,,,","777primo777@gmail.com","777primo777@gmail.com",true]
["Вероника Багоцкая,Вероника,,Багоцкая,,,,,,,,,,,,,,,,,,,,,,,,* ,bagotskaya@mail.ru,,,,","bagotskaya@mail.ru","bagotskaya@mail.ru",true]
["Сергей Бадалян,Сергей,,Бадалян,,,,,,,,,,,,,,,,,,,,,,,,* ,sergeybadalyan91@gmail.com,,,,","sergeybadalyan91@gmail.com","sergeybadalyan91@gmail.com",true]
["Нина Бадмаева,Нина,,Бадмаева,,,,,,,,,,,,,,,,,,,,,,,* My Contacts,,,,,Mobile,+79085901661","","",true]
["Юрий Базыгин,Юрий,,Базыгин,,,,,,,,,,,,,,,,,,,,,,,,* ,ybazygin@mail.ru,,,,","ybazygin@mail.ru","ybazygin@mail.ru",true]
["Рамиля Байтурина,Рамиля,,Байтурина,,,,,,,,,,,,,,,,,,,,,,,,* ,Bay-Romashka@yandex.ru,,,,","Bay-Romashka@yandex.ru","Bay-Romashka@yandex.ru",true]
["Оксана Бакирова,Оксана,,Бакирова,,,,,,,,,,,,,,,,,,,,,,,,* ,ksenok86@mail.ru,,,,","ksenok86@mail.ru","ksenok86@mail.ru",true]
["сергей балабанов,сергей,,балабанов,,,,,,,,,,,,,,,,,,,,,,,,* ,balabanovsergejj@rambler.ru,,,,","balabanovsergejj@rambler.ru","balabanovsergejj@rambler.ru",true]
["Анна Балабанова,Анна,,Балабанова,,,,,,,,,,,,,,,,,,,,,,,,* ,balabanovaann@gmail.com,,,,","balabanovaann@gmail.com","balabanovaann@gmail.com",true]
["Цыбик Балбаров,Цыбик,,Балбаров,,,,,,,,,,,,,,,,,,,,,,,,* ,tbalbarov@gmail.com,,,,","tbalbarov@gmail.com","tbalbarov@gmail.com",true]
["Наталья Балясникова,Наталья,,Балясникова,,,,,,,,,,,,,,,,,,,,,,,,* ,n.n.balyasnikova@gmail.com,,,,","n.n.balyasnikova@gmail.com","n.n.balyasnikova@gmail.com",true]
["Наталья Балясникова,Наталья,,Балясникова,,,,,,,,,,,,,,,,,,,,,,,,* ,n.balyasnikova@pn-leasing.ru,,,,","","",true]
["Юлия Банеева,Юлия,,Банеева,,,,,,,,,,,,,,,,,,,,,,,,* ,iulya.djulia88@yandex.ru,,,,","iulya.djulia88@yandex.ru","iulya.djulia88@yandex.ru",true]
["Бар,Бар,,,,,,,,,,,,,,,,,,,,,,,,,* My Contacts,,,,,Mobile,300862","","",true]
["Николай Экспресс Бар,Николай,Экспресс,Бар,,,,,,,,,,,,,,,,,,,,,,,* My Contacts,,,,,Mobile,+79650071109","","",true]
["Сергей Баранов,Сергей,,Баранов,,,,,,,,,,,,,,,,,,,,,,,,* ,hackmebs@rambler.ru,,,,","hackmebs@rambler.ru","hackmebs@rambler.ru",true]
["Екатерина Баранова,Екатерина,,Баранова,,,,,,,,,,,,,,,,,,,,,,,,* ,cat3322@mail.ru,,,,","cat3322@mail.ru","cat3322@mail.ru",true]
["евгений басенко,евгений,,басенко,,,,,,,,,,,,,,,,,,,,,,,,* ,sky.arhangell@gmail.com,,,,","sky.arhangell@gmail.com","sky.arhangell@gmail.com",true]
["Анна Баташова,Анна,,Баташова,,,,,,,,,,,,,,,,,,,,,,,,* ,89265533425@mail.ru,,,,","89265533425@mail.ru","89265533425@mail.ru",true]
["Диана Баттахова,Диана,,Баттахова,,,,,,,,,,,,,,,,,,,,,,,,* ,bke2223@inbox.ru,,,,","bke2223@inbox.ru","bke2223@inbox.ru",true]
["Цыденова Баярма,Цыденова,,Баярма,,,,,,,,,,,,,,,,,,,,,,,,* ,bayarma1976@yandex.ru,,,,","bayarma1976@yandex.ru","bayarma1976@yandex.ru",true]
["ААААА ББББ,ААААА,,ББББ,,,,,,,,,,,,,,,,,,,,,,,,* ,bzarova15@mail.ru,,,,","bzarova15@mail.ru","bzarova15@mail.ru",true]
["Катерина Беднева,Катерина,,Беднева,,,,,,,,,,,,,,,,,,,,,,,,* ,katrin---90@mail.ru,,,,","katrin---90@mail.ru","katrin---90@mail.ru",true]
["Соня Безматерных,Соня,,Безматерных,,,,,,,,,,,,,,,,,,,,,,,,* ,bezmaternyh72@gmail.com,,,,","bezmaternyh72@gmail.com","bezmaternyh72@gmail.com",true]
["Алёна Белик,Алёна,,Белик,,,,,,,,,,,,,,,,,,,,,,,,* ,beliksh@mail.ru,,,,","beliksh@mail.ru","beliksh@mail.ru",true]
["Лена Белик,Лена,,Белик,,,,,,,,,,,,,,,,,,,,,,,,* ,pirat.pi.rat@mail.ru,,,,","pirat.pi.rat@mail.ru","pirat.pi.rat@mail.ru",true]
["Евгения Белова,Евгения,,Белова,,,,,,,,,,,,,,,,,,,,,,,,* ,aaya191@rambler.ru,,,,","aaya191@rambler.ru","aaya191@rambler.ru",true]
["Юлия Белова,Юлия,,Белова,,,,,,,,,,,,,,,,,,,,,,,,* ,belovayuliya1990@mail.ru,,,,","belovayuliya1990@mail.ru","belovayuliya1990@mail.ru",true]
["Карина Белозерова,Карина,,Белозерова,,,,,,,,,,,,,,,,,,,,,,,,* ,rasta-dredgerl@mail.ru,,,,","rasta-dredgerl@mail.ru","rasta-dredgerl@mail.ru",true]
["Максим Беляев,Максим,,Беляев,,,,,,,,,,,,,,,,,,,,,,,,* ,maxim.believ@gmail.com,,,,","maxim.believ@gmail.com","maxim.believ@gmail.com",true]
["Любовь Беляева,Любовь,,Беляева,,,,,,,,,,,,,,,,,,,,,,,,* ,lyubov.belyaeva.2012@mail.ru,,,,","lyubov.belyaeva.2012@mail.ru","lyubov.belyaeva.2012@mail.ru",true]